Cogmind - Beta 13 *** ADVENTURER MODE // 2024.03.31 @ 15:19:31 Player: Moja Result: Destroyed by G-47 Trooper with Particle Gun Performance ------------- Evolutions (3) 1500 Regions Visited (5) 1000 Robots Destroyed (145) 725 Value Destroyed (4783) 4783 Prototype IDs (8) 160 Alien Tech Used (0) 0 Bonus (94) 94 TOTAL SCORE: 8262 Bonus ------- High Alert Combat Kills 94 Cogmind --------- Core Integrity 0/700 Matter 63/300 Energy 100/100 System Corruption 3% Temperature Cool (27) Movement Core (700) Ox13 Location -7/Storage Parts ------- > --- POWER (2) -------- (None) > --- PROPULSION (5) --- (None) > --- UTILITY (4) ------ High-capacity Storage Unit Advanced Targeting Computer Hacking Suite > --- WEAPON (2) ------- (None) > --- INVENTORY (20) --- Armored Treads Improved Heat Sink Coolant Injector High-capacity Storage Unit High-capacity Battery (250) Compact Battery (200) Weight Redist. System Recoil Stabilizer Transmission Jammer Hardened Heavy Armor Plating Component Analysis Suite Improved Trap Extractor (0/6) Improved Field Recycling Unit (0) Peak State ------------ > --- POWER ------------ Light Nuclear Core Light Nuclear Core > --- PROPULSION ------- Medium Treads Cooled Airjet VTOL Module VTOL Module VTOL Module > --- UTILITY ---------- High-capacity Storage Unit Advanced Weight Redist. System Advanced Targeting Computer Improved Field Recycling Unit > --- WEAPON ----------- Minigun Precision Assault Rifle > --- INVENTORY -------- Coolant Injector High-capacity Storage Unit High-capacity Battery Advanced Weight Redist. System Recoil Stabilizer Transmission Jammer Hardened Light Armor Plating Hardened Light Armor Plating Hardened Heavy Armor Plating Hacking Suite Component Analysis Suite Lightning Gun Improved EM Pulse Cannon Precision Assault Rifle Advanced Assault Cannon Grenade Launcher Rocket Launcher Missile Launcher Remote Datajack [Rating: 46] Favorites ----------- Power Light Nuclear Core Engine Improved Ion Engine Power Core Light Nuclear Core Propulsion Light Treads Treads Light Treads Leg Aluminum Leg Wheel Armored Wheel Hover Unit Cooled Airjet Flight Unit Xenon Bombardment Thruster Utility High-capacity Storage Unit Device Weight Redist. System Storage High-capacity Storage Unit Processor Advanced Targeting Computer Hackware Hacking Suite Protection Hardened Medium Armor Plating Weapon Grenade Launcher Energy Gun Gatling Laser Energy Cannon Beam Cannon Ballistic Gun Minigun Ballistic Cannon Advanced Assault Cannon Launcher Grenade Launcher Special Weapon Mining Laser Impact Weapon Heavy Hammer Build | -11 -10 -9 -8 -7 -7 ------- Run | Yrd Mat Mat Mat Fac Sto Slots Evolved 6 | . . 2 2 2 . Power 1 | . . . 1 . . Propulsion 3 | . . 1 1 1 . Utility 2 | . . 1 . 1 . Weapon . | . . . . . . Parts Attached 257 | 7 25 41 58 118 8 Power 24 | 1 4 1 7 11 . Engine 16 | 1 4 1 6 4 . Core 8 | . . . 1 7 . Reactor . | . . . . . . Propulsion 80 | 4 7 22 13 31 3 Treads 28 | . . 6 10 12 . Leg 14 | 2 1 4 . 6 1 Wheel 26 | 2 6 8 . 8 2 Hover 3 | . . 1 1 1 . Flight 9 | . . 3 2 4 . Utility 57 | . 10 4 8 34 1 Device 27 | . 3 2 4 18 . Storage 12 | . 5 . 1 6 . Processor 3 | . 1 . 1 1 . Hackware 1 | . . . . 1 . Protection 14 | . 1 2 2 8 1 Artifact . | . . . . . . Weapon 96 | 2 4 14 30 42 4 Energy Gun 13 | 1 . . 5 7 . Energy Cannon 4 | . 1 1 . 1 1 Ballistic Gun 40 | 1 . 7 16 16 . Ballistic Cannon 2 | . . . . 2 . Launcher 28 | . 3 4 7 12 2 Special Weapon 4 | . . 1 . 2 1 Impact Weapon 5 | . . 1 2 2 . Slashing Weapon . | . . . . . . Piercing Weapon . | . . . . . . Special Melee Weapon . | . . . . . . Unidentified Prototypes 3 | . . . . 3 . Corrupted Parts 1 | . . . 1 . . System Corruption 5 | . . . 5 . . Parts Lost 47 | . 4 . 2 27 14 Power 11 | . 1 . 2 7 1 Propulsion 20 | . 2 . . 11 7 Utility 5 | . . . . 4 1 Weapon 11 | . 1 . . 5 5 Highest Loss Streak 14 | . 4 . 1 10 14 To Critical Strikes . | . . . . . . Average Slot Usage (%) 92 | . 97 95 95 90 69 Engine 9 | . 13 11 14 6 5 Core 3 | . . . . 5 . Treads 20 | . . 4 32 26 . Leg 1 | . . 2 . 2 1 Wheel 8 | . 26 20 1 1 23 Device 8 | . 5 13 8 7 . Storage 10 | . 20 11 9 7 11 Processor 4 | . 2 . 5 5 7 Protection 4 | . . 8 3 5 1 Energy Gun 1 | . . . 4 1 . Energy Cannon 2 | . 12 5 . . . Ballistic Gun 8 | . 6 11 9 7 . Launcher 3 | . 8 2 2 2 3 Naked Turns . | . . . . . . Heaviest Build 90 | 7 59 56 68 90 67 Greatest Support 117 | 20 30 66 89 117 50 Greatest Overweight (x) 19 | . 16 1 2 16 19 Average Overweight (x) . | . 1 . . . 2 Largest Inventory Capacity 20 | 5 20 20 20 20 20 Average Capacity 19 | 5 18 20 20 20 20 Most Carried 20 | 5 20 20 20 20 20 Average Carried 18 | 2 14 18 19 19 17 Final Capacity 20 | 5 20 20 20 20 20 Final Carried 20 | 5 16 19 20 20 14 Class Distribution -------------------- 49% | Mutant 44% | Scavenger-Mutant 6% | Hacker-Mutant Dominant Class ---------------- Mutant | -10/Materials Mutant | -9/Materials Mutant | -8/Materials Scavenger-Mutant | -7/Factory Hacker-Mutant | -7/Storage Resources | -11 -10 -9 -8 -7 -7 ----------- Run | Yrd Mat Mat Mat Fac Sto Matter Collected 4520 | 279 491 646 841 2081 182 Remotely 123 | . 13 110 . . . Salvage Created 5061 | 30 603 789 917 2538 184 Parts 265 | 4 42 48 55 107 9 Haulers Intercepted 1 | . . . . 1 . Recyclers Shooed 3 | . 1 1 . 1 . Parts Field Recycled 24 | . . . . 24 . Retrieved Matter 287 | . . . . 287 . Parts Self-Destructed . | . . . . . . Prevented . | . . . . . . Kills | -11 -10 -9 -8 -7 -7 ------- Run | Yrd Mat Mat Mat Fac Sto Combat Hostiles Destroyed 122 | 1 14 21 27 53 6 Melee 2 | . . . . 2 . Guns 43 | 1 2 3 10 27 . Cannons 19 | . 6 2 . 10 1 AOE 57 | . 6 16 16 14 5 Classes Destroyed 17 | 1 4 3 3 5 1 Worker 4 | . . . 1 3 . Builder 4 | . . . 1 2 1 Tunneler 2 | . 1 . 1 . . Hauler 1 | . . . . 1 . Recycler 14 | . 3 4 1 6 . Mechanic 1 | . . 1 . . . Operator 1 | . . . . . 1 Watcher 7 | . 3 1 2 1 . Swarmer 21 | . 6 4 8 3 . Grunt 70 | 1 8 13 12 33 3 Brawler 2 | . . . . 2 . Duelist 2 | . . 1 . 1 . Protector 1 | . . . . 1 . Sentry 15 | . . 3 5 4 3 Specialist 2 | . . . . 2 . Hunter 2 | . . . 2 . . Programmer 7 | . . . . 7 . Best Kill Streak 12 | 1 9 12 9 5 6 Combat Bots Only 9 | 1 7 9 8 5 5 Max Kills in Single Turn 5 | 1 3 5 4 2 2 Gunslinging . | . . . . . . Exploded 5 | . 3 5 4 2 2 Melee 1 | . . . . 1 . Uniques/NPCs Destroyed . | . . . . . . Combat | -11 -10 -9 -8 -7 -7 -------- Run | Yrd Mat Mat Mat Fac Sto Hostile Shots Fired 1065 | 3 63 46 108 583 262 Missed 365 | 1 20 19 26 202 97 Damage Taken 7943 | 18 489 545 1109 4463 1319 Core 1115 | . 71 133 199 464 248 Absorbed by Shields . | . . . . . . Ignored by Resistances 2269 | 6 150 149 297 1252 415 Regen/Repaired (Parts) 83 | . 47 . . . 36 Core Remaining (%) 75 | 100 71 66 63 . . Volleys Fired 330 | 3 29 32 69 179 18 Largest 2 | 2 2 2 2 2 2 Hottest 128 | 70 90 90 126 128 117 Shots Fired 597 | 6 55 63 132 316 25 Gun 423 | 6 24 29 116 248 . Cannon 87 | . 21 17 . 36 13 Launcher 86 | . 10 17 16 32 11 Special 1 | . . . . . 1 Kinetic 364 | 3 24 29 62 235 11 Thermal 133 | 3 21 17 54 38 . Explosive 86 | . 10 17 16 32 11 Electromagnetic 13 | . . . . 11 2 Robot Hit Streak 51 | 5 22 17 27 51 35 Robot Miss Streak 3 | . 2 2 3 3 1 Penetration Max . | . . . . . . Secondary Targets 3 | . . . 1 2 . Max Gunslinging Chain 1 | . . . 1 1 . Shots Hit Robots 480 | 5 41 42 99 270 23 Core Hits 317 | 2 26 43 67 149 30 Critical Kills 2 | . . . 1 1 . Critical Parts Destroyed 2 | . . . 2 . . Critical Strikes 8 | . . . 5 2 1 Burn 2 | . . . 2 . . Destroy 2 | . . . 2 . . Blast 1 | . . . . . 1 Smash 3 | . . . 1 2 . Melee Attacks 9 | . . . 1 8 . Impact 9 | . . . 1 8 . Slashing . | . . . . . . Piercing . | . . . . . . Sneak Attacks . | . . . . . . Combat Hostiles . | . . . . . . Follow-up Attacks . | . . . . . . Damage Inflicted 14425 | 77 1108 1974 2768 7346 1152 Guns 6281 | 77 236 325 1389 4254 . Cannons 1738 | . 317 249 . 823 349 Explosions 6101 | . 555 1400 1336 2007 803 Melee 280 | . . . 43 237 . Ramming 25 | . . . . 25 . Kinetic 5547 | 39 236 325 754 3893 300 Thermal 2227 | 38 317 249 635 988 . Explosive 6101 | . 555 1400 1336 2007 803 Electromagnetic 245 | . . . . 196 49 Impact 280 | . . . 43 237 . Slashing . | . . . . . . Piercing . | . . . . . . Highest Corruption 6 | . . 2 5 6 3 Average Corruption 4 | . . 2 5 3 3 Corruption Purged 5 | . . . . 5 . Corruption Blocked . | . . . . . . Effects 87 | . . 3 14 70 . Message Errors 19 | . . . 5 14 . Matter Fused 16 | . . 1 3 12 . Heat Flow Errors 12 | . . 1 1 10 . Energy Discharges 12 | . . 1 . 11 . Parts Rejected 2 | . . . 1 1 . Data Loss (minor) 14 | . . . 2 12 . Data Loss (major) 5 | . . . 1 4 . Misfires 2 | . . . 1 1 . Alerts 2 | . . . . 2 . Weapon Failures 3 | . . . . 3 . Overload Shots . | . . . . . . Overflow Damage 217 | . 16 33 83 45 40 Projectiles 5 | . . 5 . . . Explosions 146 | . 16 28 40 22 40 Melee 66 | . . . 43 23 . Knockbacks 8 | . . . . 8 . Impact 2 | . . . . 2 . Kinetic 6 | . . . . 6 . Secondary . | . . . . . . Self-Inflicted Damage 371 | . 69 189 31 67 15 Shots 18 | . 4 6 2 4 2 Rammed 3 | . . . . 3 . Targets Rammed 3 | . . . . 3 . Kicked . | . . . . . . Crushed . | . . . . . . Highest Temperature 564 | 39 237 111 564 331 87 Average Temperature 80 | 21 75 27 115 79 27 Received Heat Transfer 3465 | 12 291 153 360 1674 975 Effects 12 | . . . 12 . . Shutdowns 3 | . . . 3 . . Energy Bleed 1 | . . . 1 . . Interference 5 | . . . 5 . . Damage (minor) 2 | . . . 2 . . Damage (core) 1 | . . . 1 . . Siege Activations . | . . . . . . Robots Corrupted . | . . . . . . Combat Hostiles . | . . . . . . Parts Fried 1 | . . . 1 . . Impact Corruptions 2 | . . . 1 1 . Robots Melted . | . . . . . . Combat Hostiles . | . . . . . . Parts Melted 12 | . . . 4 8 . Heat Transferred 4962 | 111 666 518 1517 2150 . Parts Sabotaged . | . . . . . . Parts Stolen . | . . . . . . Parts Stripped . | . . . . . . Power Chain Reactions . | . . . . . . Alert | -11 -10 -9 -8 -7 -7 ------- Run | Yrd Mat Mat Mat Fac Sto Peak Influence 509 | 20 202 388 509 287 212 Initial 176 | . 11 . 117 176 31 Average 158 | 4 78 206 354 105 159 Maximum Alert Level 2 | . 1 1 2 1 1 Low Security (%) 70 | 100 99 52 6 87 81 Level 1 22 | . . 47 55 12 18 Level 2 6 | . . . 38 . . Level 3 . | . . . . . . Level 4 . | . . . . . . Level 5 . | . . . . . . High Security . | . . . . . . Max Security . | . . . . . . Squads Dispatched 37 | . 4 5 5 18 5 Investigation 16 | . 4 3 3 6 . Extermination 4 | . . . . 4 . Reinforcement 12 | . . 2 2 6 2 Assault 1 | . . . . 1 . Garrison 4 | . . . . 1 3 Intercept . | . . . . . . Searches Triggered . | . . . . . . Construction Impeded 2 | . . . . 1 1 Haulers Reinforced 1 | . . . . 1 . Active Scanning Responses . | . . . . . . Cargo Convoy Interrupts 1 | . . . . 1 . Stealth | -11 -10 -9 -8 -7 -7 --------- Run | Yrd Mat Mat Mat Fac Sto Distress Signals 2 | . 1 1 . . . Communications Jammed . | . . . . . . Distress Signals . | . . . . . . Times Spotted 158 | 1 22 23 33 68 11 Peak Tracking Total 9 | 1 6 9 6 5 5 Tactical Retreats 2 | . . . . 2 . Traps | -11 -10 -9 -8 -7 -7 ------- Run | Yrd Mat Mat Mat Fac Sto Traps Triggered 7 | . 3 2 . 2 . Indirectly . | . . . . . . Trap Hack Attempts . | . . . . . . Triggered . | . . . . . . Disarmed . | . . . . . . Reprogrammed . | . . . . . . Reused . | . . . . . . Traps Extracted . | . . . . . . Installed . | . . . . . . Triggered 2 | . . . . 2 . Machines | -11 -10 -9 -8 -7 -7 ---------- Run | Yrd Mat Mat Mat Fac Sto Machines Disabled 10 | . . 2 3 4 1 Max in Single Turn 4 | . . 2 1 4 1 Garrison Access 1 | . . . . 1 . Machines Repaired . | . . . . . . Machines Dismantled . | . . . . . . Machines Sabotaged . | . . . . . . Overloaded Fab Kills . | . . . . . . Hacking | -11 -10 -9 -8 -7 -7 --------- Run | Yrd Mat Mat Mat Fac Sto Machines Accessed 24 | . 7 4 5 7 1 Terminals 13 | . 4 2 3 4 . Fabricators 2 | . . . . 2 . Repair Stations 3 | . 1 . 1 . 1 Recycling Units 4 | . 2 1 . 1 . Scanalyzers 2 | . . 1 1 . . Garrison Access . | . . . . . . Total Hacks 101 | . 38 21 18 22 2 Successful 70 | . 28 15 14 11 2 Failed 30 | . 10 6 3 11 . Catastrophic 1 | . . . 1 . . Database Lockouts 1 | . . . 1 . . Manual . | . . . . . . Terminals 54 | . 27 7 8 12 . Fabricators 7 | . . . . 7 . Repair Stations 9 | . 4 . 3 . 2 Recycling Units 15 | . 7 5 . 3 . Scanalyzers 16 | . . 9 7 . . Garrison Access . | . . . . . . Terminal Hacks 37 | . 18 5 6 8 . Record 17 | . 10 . 5 2 . Prototype ID Bank 2 | . 1 1 . . . Open DSF 2 | . . . . 2 . Alert Level 6 | . 4 1 . 1 . Unreport Threat 1 | . 1 . . . . Locate Traps 2 | . 1 . . 1 . Maintenance Status 2 | . 1 1 . . . Surveillance Status 1 | . . 1 . . . Investigation Status 1 | . . . . 1 . Recall Investigation 1 | . . . . 1 . Hauler Manifests 1 | . . 1 . . . Zone Layout 1 | . . . 1 . . Fabricator Hacks 1 | . . . . 1 . Load Schematic 1 | . . . . 1 . Repair Station Hacks 7 | . 4 . 1 . 2 Scan Component 4 | . 2 . 1 . 1 Repair 3 | . 2 . . . 1 Recycling Unit Hacks 10 | . 6 2 . 2 . Recycle Component 2 | . 2 . . . . Process 1 | . 1 . . . . Report Inventory 4 | . 2 1 . 1 . Retrieve Matter 3 | . 1 1 . 1 . Scanalyzer 15 | . . 8 7 . . Insert Component 8 | . . 4 4 . . Analyze 7 | . . 4 3 . . Garrison Access Hacks . | . . . . . . Unauthorized Hacks . | . . . . . . Terminals . | . . . . . . Fabricators . | . . . . . . Repair Stations . | . . . . . . Recycling Units . | . . . . . . Scanalyzers . | . . . . . . Garrison Access . | . . . . . . Data Cores Recovered 1 | . . . . . 1 Used . | . . . . . . Hacking Detections 21 | . 7 3 4 6 1 Full Trace Events 19 | . 7 3 4 5 . Feedback Events 1 | . . . . 1 . Corruption 1 | . . . . 1 . Feedback Blocked . | . . . . . . Robot Schematics Acquired . | . . . . . . Robots Built . | . . . . . . Authchips . | . . . . . . Time . | . . . . . . Total Robot Build Rating . | . . . . . . Part Schematics Acquired 7 | . . 4 3 . . Parts Built . | . . . . . . Authchips . | . . . . . . Time . | . . . . . . Total Part Build Rating . | . . . . . . Parts Repaired 3 | . 2 . . . 1 Time 78 | . 52 . . . 26 Parts Recycled 2 | . 2 . . . . Recycled Matter 222 | . 222 . . . . Retrieved Matter 895 | . 310 203 . 382 . Retrieved Components . | . . . . . . Parts Scanalyzed 7 | . . 4 3 . . Part Schematics Acquired 7 | . . 4 3 . . Parts Damaged . | . . . . . . Bothacking | -11 -10 -9 -8 -7 -7 ------------ Run | Yrd Mat Mat Mat Fac Sto Used RIF Installer . | . . . . . . Robots Hacked 1 | . . . . . 1 Non-combat . | . . . . . . Combat 1 | . . . . . 1 Robot Hacks Applied 1 | . . . . . 1 parse_system 1 | . . . . . 1 Relay Couplers Released 1 | . . . . 1 . Machine Destruction 1 | . . . . 1 . Fabnet Peak Effective % . | . . . . . . Robots Rewired . | . . . . . . Allies Hacked . | . . . . . . Hacks Repelled . | . . . . . . Allies | -11 -10 -9 -8 -7 -7 -------- Run | Yrd Mat Mat Mat Fac Sto Total Allies . | . . . . . . Largest Group . | . . . . . . Highest-Rated Group . | . . . . . . Highest-Rated Ally . | . . . . . . Total Orders . | . . . . . . Ally Attacks . | . . . . . . Total Damage . | . . . . . . Kills . | . . . . . . Allies Corrupted . | . . . . . . Allies Melted . | . . . . . . Intel | -11 -10 -9 -8 -7 -7 ------- Run | Yrd Mat Mat Mat Fac Sto Robot Analysis Total . | . . . . . . Derelict Logs Recovered . | . . . . . . Drone Launches . | . . . . . . Drone Recoveries . | . . . . . . Exploration | -11 -10 -9 -8 -7 -7 ------------- Run | Yrd Mat Mat Mat Fac Sto Turns Passed 8577 | 135 1251 1138 1550 4372 131 Spaces Moved 4904 | 144 978 860 782 2086 54 Core 51 | 39 3 . . 7 2 Treads 2428 | . . 1 683 1744 . Legs 180 | 6 . 35 . 134 5 Wheels 2242 | 99 975 824 99 198 47 Hover . | . . . . . . Flight 3 | . . . . 3 . Fastest Speed 50 | 50 80 105 105 95 95 Average Speed 141 | 73 109 108 157 168 155 Slowest Speed 1275 | 120 850 190 240 1275 1000 Overloaded Moves . | . . . . . . Propulsion Burnouts . | . . . . . . Robots Hopped . | . . . . . . Cave-ins Triggered 1 | . . . . 1 . Exploration Rate (%) 35 | 8 86 36 50 26 9 Regions Visited 5 Branch Regions 1 Pre-discovered Areas . | . . . . . . Known Exits Taken . | . . . . . . Unknown Exits Taken 5 | 1 1 1 1 1 . Scrap Searched . | . . . . . . Spaces Dug 8 | . . . . 8 . Terrain Destroyed 448 | . 81 100 103 127 37 Melee . | . . . . . . Projectile 2 | . . . . 2 . AOE 446 | . 81 100 103 125 37 Terrain Rammed . | . . . . . . Walls Destroyed . | . . . . . . Machines Disabled . | . . . . . . Actions | -11 -10 -9 -8 -7 -7 --------- Run | Yrd Mat Mat Mat Fac Sto Total 5918 | 167 1111 999 966 2595 80 Wait 122 | . 6 25 . 91 . Move 4899 | 143 977 859 781 2085 54 Hop . | . . . . . . Pick Up 175 | 12 54 21 26 62 . Fast Attach 27 | . 2 1 10 14 . Attach 70 | 5 11 8 3 37 6 Detach 8 | . . 4 1 3 . Swap 161 | 2 12 32 45 68 2 Drop 114 | 2 20 17 30 45 . Fire 330 | 3 29 32 69 179 18 Melee 9 | . . . 1 8 . Ram . | . . . . . . Kick . | . . . . . . Crush 3 | . . . . 3 . Escape Stasis . | . . . . . . Rewire . | . . . . . . Trap . | . . . . . . Miscellaneous . | . . . . . . Route ------- -11/Scrapyard -10/Materials (discovered 3 exits: *Mat x2 / [*Min]) -9/Materials (discovered 2 exits: *Mat / [*Min]) -8/Materials -7/Factory -7/Storage History --------- Turn | Location | Event 2 | -11/Scrapyard | Met Revision 17 94 | -11/Scrapyard | Discovered new exit (range 8) 136 | -11/Scrapyard | Entered Materials 197 | -10/Materials | Discovered new exit (range 12) 330 | -10/Materials | Build established: Mutant 346 | -10/Materials | Destroyed 7 combat bots 355 | -10/Materials | Lost 4 parts (1p2n1w) 1054 | -10/Materials | Discovered new exit (range 5) 1062 | -10/Materials | Repaired Grenade Launcher 1088 | -10/Materials | Repaired Hcp. Storage Unit 1288 | -10/Materials | Discovered new exit (range 7) 1387 | -10/Materials | Entered another Materials area 1387 | -9/Materials | Evolved 2 slots: Propulsion x1, Utility x1 1469 | -9/Materials | Discovered new exit (range 16) 2190 | -9/Materials | Destroyed 9 combat bots 2306 | -9/Materials | Discovered new exit (range 15) 2525 | -9/Materials | Entered another Materials area 2525 | -8/Materials | Evolved 2 slots: Power x1, Propulsion x1 2659 | -8/Materials | Destroyed 8 combat bots 3777 | -8/Materials | Discovered new exit (range 19) 3871 | -8/Materials | Central database locked down 3982 | -8/Materials | Build established: Scavenger-Mutant 4024 | -8/Materials | Found Powered Armor 4075 | -8/Materials | Entered Factory 4075 | -7/Factory | Evolved 2 slots: Propulsion x1, Utility x1 4512 | -7/Factory | Garrison activated, responded to threat 5064 | -7/Factory | Cargo convoy interrupted 7857 | -7/Factory | Lost 3 parts (2p1n) 7913 | -7/Factory | Discovered new exit (range 14) 7929 | -7/Factory | Core integrity fell below 50% 7950 | -7/Factory | Crushed by falling debris 7981 | -7/Factory | Lost 10 parts (2p5n2u1w) 8054 | -7/Factory | Lost 4 parts (1n1u2w) 8255 | -7/Factory | Build established: Hacker-Mutant 8447 | -7/Factory | Entered Storage 8545 | -7/Storage | Core integrity fell below 20% 8564 | -7/Storage | Repaired Wheel 8578 | -7/Storage | Destroyed by G-47 Trooper with Particle Gun Last Messages --------------- >>parse_system Reading system data... Cld. Deuterium Engine destroyed. Critical hit (Burn: +37). R-06 Scavenger collects Lgt. Ion Engine. Hrd. Light Armor Plating destroyed. R-06 Scavenger collects Structural Scanner. The unstable cave ceiling collapses. R-06 Scavenger collects Terrain Scanner. Repair station completes Wheel repairs. Critical hit (Burn: +37). Acquired 35 matter. R-06 Scavenger collects Unknown Ballistic Gun. Remote Datajack destroyed. The unstable cave ceiling collapses. Acquired 15 matter. VSS Leg destroyed. Critical hit (Burn: +37). [Achievement: First Step to Greatness] [Achievement: 5k Club] Map ----- +----------------------------------------------------+ | ?????????????????????????????????????????????????? | | ?????????????????????????????????????????????????? | | ?????????????????????????????????????????????????? | | ?????????????????????????????????????????????????? | | ?????????????????????????????????????????????????? | | ?????????????????????????????????????????????????? | | ?????????????????????????????????????????????????? | | ?????????????????????????????????????????????????? | | ?????????????????????????????????????????????????? | | ?????????????????????????????????????????????????? | | ?????????????????????????????######??????????????? | | ????????????????????????????? #??????????????? | | ?????????????????????????????? #??????????????? | | ?????????????????????????????? #??????????????? | | ??????????????????????????????# #??????????????? | | ??????????????????????????????# +??????????????? | | ?????????????????????###??????# #??????????????? | | ????????????????????## ######## #??????????????? | | ?????????????????#### ## #??????????????? | | ?????????????????#""" """" ## #??????????????? | | ?????????????????#"R= ""R" ## ##?????????????? | | ?????????????????#""" "" " # ###########???? | | ?????????????????### # = #???? | | ???????????????????# gY g/ #???? | | ??????????????????## %# = #???? | | ??????????????????# # @ # ####+######???? | | ??????????????????# # # ##?????????????? | | ??????????????????# # " " #######??????????????? | | ??????????????????# # " " #??????????????????? | | ??????????????????# ""G"" ##??????????????????? | | ??????????????????######### ##???????????????????? | | ??????????????????????????###????????????????????? | | ?????????????????????????????????????????????????? | | ?????????????????????????????????????????????????? | | ?????????????????????????????????????????????????? | | ?????????????????????????????????????????????????? | | ?????????????????????????????????????????????????? | | ?????????????????????????????????????????????????? | | ?????????????????????????????????????????????????? | | | | | | | | | | | | | | | | | | | | | | | +----------------------------------------------------+ Best States ------------- Heat Dissipation 61 Energy Generation 26 Energy Capacity 560 Matter Stores 346 Matter Capacity 400 Sight Range 20 Terrain Scan Range 16 Terrain Scan Density 10 Additional Mass Support 9 Armor Coverage 625 Resistance: KI 20 Resistance: TH 20 Resistance: EX 20 Resistance: EM 20 Resistance: I 20 Resistance: S 20 Resistance: P 20 Evasion (%) 55 Targeting Accuracy 8 Recoil Reduction 9 Offensive Hacking 20 Item Schematics ----------------- Aluminum Leg | -9/Materials | Scanalyzed Grenade Launcher | -9/Materials | Scanalyzed ECM Suite | -9/Materials | Scanalyzed Lgt. Treads | -9/Materials | Scanalyzed Arm. Wheel | -8/Materials | Scanalyzed Hvy. Assault Rifle | -8/Materials | Scanalyzed Shotgun | -8/Materials | Scanalyzed Robot Schematics ------------------ None Fabricated ------------ Nothing Alien Tech Used ----------------- None Achievements -------------- 5k Club Crack Shot Everything Is Under Control First Step to Greatness Librarian Loot Pinata Made in Tau Ceti IV Maybe Next Time I'll Detach My Launcher One Hack Too Far Oops Part-time Mechanic Party Time Quick And Dirty Remodeling Risk Taker Shopping List Troublemaker Uninvited Guest Unlikely Earthworm Use The Force Challenges ------------ None Game ------ Seed ArmoredMicroFemtoactuators Manual? 0 Play Time 02:31:14 Cumulative 2.5 hours Start 2024.03.31 @ 12:45:38 End 2024.03.31 @ 15:19:31 Sessions 1 Manual Loads 0 Difficulty Adventurer Special Mode None Game No. 1 Rogue 0 Adventurer 1 Explorer 0 Win Type - Total 0 Types 0/0/0/0/0/0/0/0/0 Lore% 1 Gallery% 7 Achievement% 7 Wizard Run 0 Options --------- Layout 1 ASCII 0 Keyboard 0 Movement Arrows Keybinds 0 Fullscreen 1 Font 32/Cog Map View 50x35 Zoom Use 0% Tactical HUD 0 Map Filters NONE Filters NONE Steam 1 RUN: 26de1387-7833-415f-a70d-dfe17135b034